Cogmind - Beta 13 @@@ ROGUE MODE // 2024.04.06 @ 19:35:01 Player: triplej Result: Destroyed by YI-UF0 with YI-UF0's Doublenader Performance ------------- Evolutions (1) 500 Regions Visited (3) 600 Robots Destroyed (16) 80 Value Destroyed (424) 424 Prototype IDs (2) 40 Alien Tech Used (0) 0 Bonus (200) 200 TOTAL SCORE: 1844 Bonus ------- Pacifist 200 Cogmind --------- Core Integrity 0/400 Matter 300/300 Energy 100/100 System Corruption 0% Temperature Cool (0) Movement Core (350) Ox6 Location -9/Mines Parts ------- > --- POWER (2) -------- (None) > --- PROPULSION (2) --- (None) > --- UTILITY (3) ------ Large Storage Unit Transport Network Coupler > --- WEAPON (2) ------- (None) > --- INVENTORY (15) --- Light Ion Engine Thermal Generator Heat Sink Small Storage Unit Particle Charger Particle Charger Advanced Beam Rifle Light Assault Rifle Improved Assault Rifle Katana Peak State ------------ > --- POWER ------------ Ion Engine Light Ion Engine > --- PROPULSION ------- Aluminum Leg Aluminum Leg > --- UTILITY ---------- Thermal Generator Thermal Generator Small Storage Unit > --- WEAPON ----------- Advanced Beam Rifle Advanced Beam Rifle > --- INVENTORY -------- Improved Aluminum Leg Heat Sink Particle Charger Particle Charger Advanced Beam Rifle Advanced Beam Rifle Light Assault Rifle Katana [Rating: 21] Favorites ----------- Power Ion Engine Engine Ion Engine Propulsion Aluminum Leg Leg Aluminum Leg Wheel Compact Wheel Flight Unit Flight Unit Utility Thermal Generator Device Thermal Generator Storage Large Storage Unit Processor Transport Network Coupler Weapon Advanced Beam Rifle Energy Gun Advanced Beam Rifle Ballistic Gun Light Assault Rifle Build | -11 -10 -9 -9 ------- Run | Yrd Mat Mat Min Slots Evolved 2 | . . 2 . Power 1 | . . 1 . Propulsion . | . . . . Utility 1 | . . 1 . Weapon . | . . . . Parts Attached 26 | 7 2 12 5 Power 4 | 1 . 2 1 Engine 4 | 1 . 2 1 Core . | . . . . Reactor . | . . . . Propulsion 8 | 3 . 1 4 Treads . | . . . . Leg 6 | 2 . 1 3 Wheel 1 | 1 . . . Hover . | . . . . Flight 1 | . . . 1 Utility 8 | 1 2 5 . Device 3 | . . 3 . Storage 4 | 1 2 1 . Processor 1 | . . 1 . Hackware . | . . . . Protection . | . . . . Artifact . | . . . . Weapon 6 | 2 . 4 . Energy Gun 3 | . . 3 . Energy Cannon . | . . . . Ballistic Gun 3 | 2 . 1 . Ballistic Cannon . | . . . . Launcher . | . . . . Special Weapon . | . . . . Impact Weapon . | . . . . Slashing Weapon . | . . . . Piercing Weapon . | . . . . Special Melee Weapon . | . . . . Unidentified Prototypes 2 | . . 2 . Parts Lost 12 | . . 1 11 Power 4 | . . 1 3 Propulsion 5 | . . . 5 Utility 1 | . . . 1 Weapon 2 | . . . 2 Highest Loss Streak 8 | . . 1 8 To Critical Strikes . | . . . . Average Slot Usage (%) 91 | . 88 90 93 Engine 20 | . 14 20 21 Leg 18 | . 28 22 15 Flight 1 | . . . 1 Device 10 | . . 12 10 Storage 11 | . 17 11 11 Processor 7 | . . 1 11 Energy Gun 17 | . . 13 21 Ballistic Gun 4 | . 28 8 . Naked Turns . | . . . . Heaviest Build 43 | 11 31 43 43 Greatest Support 23 | 20 20 20 23 Greatest Overweight (x) 7 | . 1 2 7 Average Overweight (x) 1 | . . . 2 Largest Inventory Capacity 15 | 8 15 15 15 Average Capacity 12 | 7 9 9 15 Most Carried 12 | 6 7 12 11 Average Carried 8 | 4 6 7 10 Final Capacity 15 | 8 8 15 15 Final Carried 11 | 6 6 11 10 Class Distribution -------------------- 76% | Mutant 23% | Scavenger-Mutant Dominant Class ---------------- Mutant | -10/Materials Mutant | -9/Materials Mutant | -9/Mines Resources | -11 -10 -9 -9 ----------- Run | Yrd Mat Mat Min Matter Collected 500 | 181 . 284 35 Remotely . | . . . . Salvage Created 500 | . . 281 219 Parts 27 | . . 14 13 Haulers Intercepted . | . . . . Recyclers Shooed . | . . . . Parts Field Recycled . | . . . . Retrieved Matter . | . . . . Parts Self-Destructed . | . . . . Prevented . | . . . . Kills | -11 -10 -9 -9 ------- Run | Yrd Mat Mat Min Combat Hostiles Destroyed 16 | . . 6 10 Guns 16 | . . 6 10 Classes Destroyed 4 | . . 3 1 Swarmer 7 | . . . 7 Grunt 6 | . . 3 3 Duelist 1 | . . 1 . Sentry 2 | . . 2 . Best Kill Streak 4 | . . 2 4 Combat Bots Only 4 | . . 2 4 Max Kills in Single Turn 2 | . . 1 2 Gunslinging 1 | . . . 1 Exploded . | . . . . Melee . | . . . . Uniques/NPCs Destroyed . | . . . . Combat | -11 -10 -9 -9 -------- Run | Yrd Mat Mat Min Hostile Shots Fired 143 | . 13 29 101 Missed 35 | . 6 4 25 Damage Taken 1526 | . 80 309 1137 Core 421 | . 7 61 353 Absorbed by Shields . | . . . . Core Remaining (%) 98 | 100 97 . . Volleys Fired 45 | . . 23 22 Largest 2 | . . 2 2 Hottest 122 | . . 122 122 Shots Fired 90 | . . 46 44 Gun 90 | . . 46 44 Cannon . | . . . . Launcher . | . . . . Special . | . . . . Kinetic 30 | . . 30 . Thermal 60 | . . 16 44 Explosive . | . . . . Electromagnetic . | . . . . Robot Hit Streak 8 | . . 5 8 Robot Miss Streak 5 | . . 5 3 Penetration Max . | . . . . Secondary Targets 5 | . . 1 4 Max Gunslinging Chain 1 | . . 1 1 Shots Hit Robots 52 | . . 28 24 Core Hits 22 | . . 11 11 Critical Kills . | . . . . Critical Parts Destroyed . | . . . . Critical Strikes 5 | . . 1 4 Burn 5 | . . 1 4 Melee Attacks . | . . . . Impact . | . . . . Slashing . | . . . . Piercing . | . . . . Sneak Attacks . | . . . . Combat Hostiles . | . . . . Follow-up Attacks . | . . . . Damage Inflicted 875 | . . 375 500 Guns 875 | . . 375 500 Cannons . | . . . . Explosions . | . . . . Melee . | . . . . Ramming . | . . . . Kinetic 195 | . . 195 . Thermal 680 | . . 180 500 Explosive . | . . . . Electromagnetic . | . . . . Impact . | . . . . Slashing . | . . . . Piercing . | . . . . Highest Corruption . | . . . . Average Corruption . | . . . . Corruption Purged . | . . . . Corruption Blocked . | . . . . Overload Shots . | . . . . Overflow Damage . | . . . . Projectiles . | . . . . Explosions . | . . . . Melee . | . . . . Knockbacks . | . . . . Impact . | . . . . Kinetic . | . . . . Secondary . | . . . . Self-Inflicted Damage . | . . . . Shots . | . . . . Rammed . | . . . . Targets Rammed . | . . . . Kicked . | . . . . Crushed . | . . . . Highest Temperature 343 | . . 243 343 Average Temperature 105 | . . 73 122 Received Heat Transfer 246 | . 33 156 57 Effects 1 | . . . 1 Shutdowns 1 | . . . 1 Siege Activations . | . . . . Robots Corrupted . | . . . . Combat Hostiles . | . . . . Parts Fried . | . . . . Impact Corruptions . | . . . . Robots Melted . | . . . . Combat Hostiles . | . . . . Parts Melted 5 | . . 1 4 Heat Transferred 1628 | . . 407 1221 Parts Sabotaged . | . . . . Parts Stolen . | . . . . Parts Stripped . | . . . . Power Chain Reactions . | . . . . Alert | -11 -10 -9 -9 ------- Run | Yrd Mat Mat Min Peak Influence 210 | . 60 180 210 Initial 70 | . . 25 70 Average 101 | . 8 118 116 Maximum Alert Level 1 | . . . 1 Low Security (%) 99 | 100 100 100 98 Level 1 . | . . . 1 Level 2 . | . . . . Level 3 . | . . . . Level 4 . | . . . . Level 5 . | . . . . High Security . | . . . . Max Security . | . . . . Squads Dispatched . | . . . . Investigation . | . . . . Extermination . | . . . . Reinforcement . | . . . . Assault . | . . . . Garrison . | . . . . Intercept . | . . . . Searches Triggered . | . . . . Construction Impeded . | . . . . Haulers Reinforced . | . . . . Active Scanning Responses . | . . . . Cargo Convoy Interrupts . | . . . . Stealth | -11 -10 -9 -9 --------- Run | Yrd Mat Mat Min Distress Signals 2 | . . 2 . Communications Jammed . | . . . . Distress Signals . | . . . . Times Spotted 26 | . 6 7 13 Peak Tracking Total 6 | . 6 3 5 Tactical Retreats 3 | . 1 . 2 Traps | -11 -10 -9 -9 ------- Run | Yrd Mat Mat Min Traps Triggered . | . . . . Indirectly . | . . . . Trap Hack Attempts . | . . . . Triggered . | . . . . Disarmed . | . . . . Reprogrammed . | . . . . Reused . | . . . . Traps Extracted . | . . . . Installed . | . . . . Triggered . | . . . . Machines | -11 -10 -9 -9 ---------- Run | Yrd Mat Mat Min Machines Disabled . | . . . . Max in Single Turn . | . . . . Machines Repaired . | . . . . Machines Dismantled . | . . . . Machines Sabotaged . | . . . . Overloaded Fab Kills . | . . . . Hacking | -11 -10 -9 -9 --------- Run | Yrd Mat Mat Min Machines Accessed . | . . . . Terminals . | . . . . Fabricators . | . . . . Repair Stations . | . . . . Recycling Units . | . . . . Scanalyzers . | . . . . Garrison Access . | . . . . Total Hacks . | . . . . Successful . | . . . . Failed . | . . . . Catastrophic . | . . . . Database Lockouts . | . . . . Manual . | . . . . Terminals . | . . . . Fabricators . | . . . . Repair Stations . | . . . . Recycling Units . | . . . . Scanalyzers . | . . . . Garrison Access . | . . . . Terminal Hacks . | . . . . Fabricator Hacks . | . . . . Repair Station Hacks . | . . . . Recycling Unit Hacks . | . . . . Scanalyzer . | . . . . Garrison Access Hacks . | . . . . Unauthorized Hacks . | . . . . Terminals . | . . . . Fabricators . | . . . . Repair Stations . | . . . . Recycling Units . | . . . . Scanalyzers . | . . . . Garrison Access . | . . . . Data Cores Recovered . | . . . . Used . | . . . . Hacking Detections . | . . . . Full Trace Events . | . . . . Feedback Events . | . . . . Feedback Blocked . | . . . . Robot Schematics Acquired . | . . . . Robots Built . | . . . . Authchips . | . . . . Time . | . . . . Total Robot Build Rating . | . . . . Part Schematics Acquired . | . . . . Parts Built . | . . . . Authchips . | . . . . Time . | . . . . Total Part Build Rating . | . . . . Parts Repaired . | . . . . Time . | . . . . Parts Recycled . | . . . . Recycled Matter . | . . . . Retrieved Matter . | . . . . Retrieved Components . | . . . . Parts Scanalyzed . | . . . . Part Schematics Acquired . | . . . . Parts Damaged . | . . . . Bothacking | -11 -10 -9 -9 ------------ Run | Yrd Mat Mat Min Used RIF Installer . | . . . . Robots Hacked . | . . . . Non-combat . | . . . . Combat . | . . . . Robot Hacks Applied . | . . . . Relay Couplers Released . | . . . . Fabnet Peak Effective % . | . . . . Robots Rewired . | . . . . Allies Hacked . | . . . . Hacks Repelled . | . . . . Allies | -11 -10 -9 -9 -------- Run | Yrd Mat Mat Min Total Allies . | . . . . Largest Group . | . . . . Highest-Rated Group . | . . . . Highest-Rated Ally . | . . . . Total Orders . | . . . . Ally Attacks . | . . . . Total Damage . | . . . . Kills . | . . . . Allies Corrupted . | . . . . Allies Melted . | . . . . Intel | -11 -10 -9 -9 ------- Run | Yrd Mat Mat Min Robot Analysis Total . | . . . . Derelict Logs Recovered 1 | . . . 1 Drone Launches . | . . . . Drone Recoveries . | . . . . Exploration | -11 -10 -9 -9 ------------- Run | Yrd Mat Mat Min Turns Passed 1328 | 90 95 399 744 Spaces Moved 554 | 63 71 172 248 Core 4 | 1 . . 3 Treads . | . . . . Legs 547 | 59 71 172 245 Wheels 3 | 3 . . . Hover . | . . . . Flight . | . . . . Fastest Speed 50 | 50 120 120 190 Average Speed 204 | 117 129 171 269 Slowest Speed 400 | 120 190 260 400 Overloaded Moves . | . . . . Propulsion Burnouts . | . . . . Robots Hopped . | . . . . Cave-ins Triggered . | . . . . Exploration Rate (%) 29 | 5 15 27 70 Regions Visited 3 Branch Regions 1 Pre-discovered Areas . | . . . . Known Exits Taken . | . . . . Unknown Exits Taken 3 | 1 1 1 . Scrap Searched . | . . . . Spaces Dug . | . . . . Terrain Destroyed . | . . . . Melee . | . . . . Projectile . | . . . . AOE . | . . . . Terrain Rammed . | . . . . Walls Destroyed . | . . . . Machines Disabled . | . . . . Actions | -11 -10 -9 -9 --------- Run | Yrd Mat Mat Min Total 665 | 75 74 238 278 Wait . | . . . . Move 551 | 62 70 171 248 Hop . | . . . . Pick Up 25 | 5 . 18 2 Fast Attach 13 | 7 1 3 2 Attach 8 | . 1 4 3 Detach 4 | 1 1 2 . Swap 5 | . . 5 . Drop 14 | . 1 12 1 Fire 45 | . . 23 22 Melee . | . . . . Ram . | . . . . Kick . | . . . . Crush . | . . . . Escape Stasis . | . . . . Rewire . | . . . . Trap . | . . . . Miscellaneous . | . . . . Route ------- -11/Scrapyard -10/Materials -9/Materials -9/Mines (discovered 1 exit: [*Mat]) History --------- Turn | Location | Event 11 | -11/Scrapyard | Discovered new exit (range 15) 91 | -11/Scrapyard | Entered Materials 179 | -10/Materials | Discovered new exit (range 3) 186 | -10/Materials | Entered another Materials area 186 | -9/Materials | Evolved 2 slots: Power x1, Utility x1 309 | -9/Materials | Build established: Mutant 421 | -9/Materials | Discovered new exit (range 15) 585 | -9/Materials | Entered Mines 768 | -9/Mines | Lost 3 parts (1p2n) 1299 | -9/Mines | Discovered new exit (range 9) 1311 | -9/Mines | Core integrity fell below 50% 1321 | -9/Mines | Core integrity fell below 20% 1329 | -9/Mines | Destroyed by YI-UF0 with YI-UF0's Doublenader Last Messages --------------- 01145_ Acquired Aluminum Leg. 01146_ G-34 Mercenary destroyed. 01220_ The unstable cave ceiling collapses. 01299_ EXIT=FOUND 01302_ YI-UF0 mumbles something. 01302_ Ion Engine destroyed. 01303_ The unstable cave ceiling collapses. 01306_ Thermal Generator destroyed. 01307_ YI-UF0 mumbles something. 01307_ The unstable cave ceiling collapses. 01308_ Ion Engine destroyed. 01308_ Aluminum Leg destroyed. 01308_ Imp. Aluminum Leg destroyed. 01309_ YI-UF0 mumbles something. 01312_ The unstable cave ceiling collapses. 01318_ Aluminum Leg destroyed. 01318_ Adv. Beam Rifle destroyed. 01323_ The unstable cave ceiling collapses. 01325_ Adv. Beam Rifle destroyed. 01326_ The unstable cave ceiling collapses. Map ----- +----------------------------------------------------+ | #####???????# #### #?# #?? | | ##???????????# #?## ##?? | | ##????????????# #### #??######??? | | ## ##??????????????????# ##??????????? | | ##### #???????????????????## ## ##???????????? | | ????# #????????????????????###?## ##????????????? | | ????# #????????????????????????## #?????????????? | | ????# #????????????#??????###### #?????????????? | | ##### ######?????### #???## #?????????????? | | #?????? # ?## #?????????????? | | #?????## ?# #?????????????? | | ######### #?????# ?# ##????????????? | | ?????????? #????## ### ##???????????? | | ???????????#???## t #### #???????????? | | ????????????# ## # # ##??????????? | | ????????????# #??????????? | | ??????????? # ##?????????? | | ??????????? # ## ##????????? | | ??????????? ## ##???????? | | ??????????# # % ### #???????? | | ?????????? #?## #???????? | | ????????????# # #??# #???????? | | ????????????## # # #?## ##??????? | | ?????????????# # ### ##?????? | | ????????????# ## g ### #?????? | | ???????????# ???## @ ## #?????? | | ???????????? ??????# ## ##?????? | | ???????????????????## < # ##??????? | | ????????????????????# ##???????? | | ????????????????????## #### #####????????? | | ?????????????????????# ##?## ##????????????? | | ?????????????????????## # ## #???##??????????????? | | ??????????????????????########???????????????????? | | ?????????????????????????????????????????????????? | | ?????????????????????????????????????????????????? | | ?????????????????????????????????????????????????? | | ?????????????????????????????????????????????????? | | ?????????????????????????????????????????????????? | | | | | | | | | | | | | | | | | | | | | | | | | +----------------------------------------------------+ Best States ------------- Heat Dissipation 38 Energy Generation 17 Energy Capacity 415 Matter Stores 300 Matter Capacity 300 Sight Range 16 Terrain Scan Density 10 Evasion (%) 55 Item Schematics ----------------- None Robot Schematics ------------------ None Fabricated ------------ Nothing Alien Tech Used ----------------- None Achievements -------------- None Challenges ------------ None Game ------ Seed EnergyThermalDissipator Manual? 0 Play Time 00:11:43 Cumulative 4.9 hours Start 2024.04.06 @ 19:23:33 End 2024.04.06 @ 19:35:01 Sessions 1 Manual Loads 0 Difficulty Rogue Special Mode None Game No. 11 Rogue 6 Adventurer 5 Explorer 0 Win Type - Total 0 Types 0/0/0/0/0/0/0/0/0 Lore% 1 Gallery% 14 Achievement% 11 Wizard Run 0 Options --------- Layout 1 ASCII 0 Keyboard 0 Movement Mouse Keybinds 0 Fullscreen 2 Font 32/Dina Map View 50x35 Zoom Use 0% Tactical HUD 1 Map Filters NONE Filters NONE Steam 1 RUN: 957acc80-1e6a-4c3d-aa87-2be17b4c66bd